bitfinex/quotes_SOLUSD_20250930
["timestamp","ask_amount","ask_price","bid_price","bid_amount"]
[1759253441324,133.5,205.32,205.28,2.40936079]
[1759253441524,133.5,205.32,205.29,35.17]
[1759253441701,133.5,205.32,205.3,0.71]
[1759253441898,133.5,205.32,205.31,0.71]
[1759253442617,1.69936079,205.38,205.32,4.87044613]
[1759253442917,1.69936079,205.38,205.33,35.17]
[1759253443114,1.69936079,205.38,205.34,0.71]
[1759253443115,1.70110808,205.38,205.34,0.71]
[1759253443616,1.70110808,205.37,205.34,0.71]
[1759253445212,1.70110808,205.38,205.35,0.71]
[1759253445517,1.70110808,205.4,205.36,0.71]
[1759253445720,1.70110808,205.41,205.37,0.71]
[1759253445910,1.70110808,205.41,205.36,34.46]
[1759253446112,1.70110808,205.4,205.36,35.17]
[1759253446504,1.70110808,205.4,205.36,34.46]
[1759253446704,1.70110808,205.4,205.37,0.71]
[1759253446906,1.70110808,205.4,205.36,34.46]
[1759253447133,1.70110808,205.4,205.37,0.71]
[1759253447724,1.70110808,205.4,205.37,5.57925472]
[1759253448031,1.70110808,205.41,205.38,0.71]
[1759253448224,1.70110808,205.41,205.37,4.86925472]
[1759253448528,1.70110808,205.41,205.38,0.71]
[1759253448905,1.70110808,205.41,205.37,4.86925472]
[1759253449109,1.70110808,205.4,205.36,34.46]
[1759253449324,25.66783916,205.43,205.37,0.71]
[1759253449531,25.66783916,205.43,205.38,4.86902327]
[1759253449532,1.70110808,205.4,205.38,4.86902327]
[1759253449711,1.70110808,205.4,205.38,5.57902327]
[1759253450027,1.70110808,205.41,205.36,39.32926068]
[1759253450210,1.70110808,205.4,205.37,0.71]
[1759253451844,6.56966266,205.4,205.31,12.17635015]
[1759253452135,1.70110808,205.32,205.28,0.71]
[1759253452311,1.70110808,205.31,205.26,0.71]
[1759253452637,1.70110808,205.31,205.27,35.17]
[1759253452816,1.70110808,205.31,205.28,0.68]
[1759253453015,1.70110808,205.34,205.3,4.8709206]
[1759253453232,1.70110808,205.35,205.29,0.68]
[1759253453410,1.70110808,205.33,205.29,0.68]
[1759253453933,1.70110808,205.34,205.3,0.68]
[1759253454127,1.70110808,205.34,205.28,17.04988307]
[1759253454434,1.70110808,205.34,205.31,0.68]
[1759253455433,133.5,205.36,205.31,5.5506572]
[1759253455736,1.70110808,205.34,205.31,5.5506572]
[1759253456038,135.20110808,205.36,205.32,0.68]
[1759253456231,135.20110808,205.36,205.33,0.68]
[1759253456416,133.5,205.36,205.34,0.68]
[1759253456611,135.20110808,205.36,205.32,0.68]
[1759253456832,135.20110808,205.36,205.3,39.31090422]
[1759253456833,1.70110808,205.34,205.3,39.31090422]
[1759253457033,1.70110808,205.34,205.3,39.99090422]
[1759253457213,1.70110808,205.34,205.31,0.68]
[1759253457536,1.70110808,205.34,205.31,5.55065436]
[1759253457736,1.70110808,205.35,205.31,5.55065436]
[1759253458636,1.70110808,205.35,205.32,0.68]
[1759253458934,1.70110808,205.35,205.31,4.87065436]
[1759253459113,1.70110808,205.35,205.31,5.55065436]
[1759253459836,1.70110808,205.35,205.32,0.68]
[1759253460133,1.70110808,205.34,205.3,39.99089408]
[1759253460335,1.70110808,205.32,205.26,0.68]
[1759253460541,1.70110808,205.33,205.27,39.31163248]
[1759253460840,1.70110808,205.33,205.28,0.68]
[1759253461016,1.70110808,205.33,205.27,39.31163248]
[1759253461017,1.70110808,205.33,205.29,0.68]
[1759253461217,1.70110808,205.32,205.29,0.68]
[1759253461544,1.70110808,205.3,205.23,2.54411237]
[1759253461838,1.70110808,205.25,205.21,34.54]
[1759253462039,1.70110808,205.25,205.22,0.68]
[1759253462410,1.70110808,205.25,205.21,34.58]
[1759253462411,1.70110808,205.24,205.21,34.58]
[1759253462629,1.70110808,205.23,205.21,34.58]
[1759253462827,1.70110808,205.22,205.21,0.1]
[1759253463231,2.40110808,205.22,205.21,0.1]
[1759253463440,1.70110808,205.22,205.21,0.1]
[1759253463618,1.70110808,205.23,205.21,0.1]
[1759253463823,1.70110808,205.22,205.21,0.1]
[1759253464241,2.40110808,205.22,205.21,0.1]
[1759253465114,4.0021402,205.27,205.21,0.1]
[1759253465115,39.39163685,205.27,205.21,0.1]
[1759253465433,1.70110808,205.24,205.21,0.1]
[1759253465633,1.70110808,205.25,205.21,4.97301541]
[1759253465838,1.70110808,205.25,205.21,5.65301541]
[1759253466137,4.87147846,205.28,205.22,0.68]
[1759253466343,1.70110808,205.26,205.22,0.68]
[1759253466646,1.70110808,205.24,205.21,0.1]
[1759253466857,1.70110808,205.23,205.21,0.1]
[1759253467540,1.70110808,205.24,205.21,0.1]
[1759253467747,1.70110808,205.24,205.21,4.97301761]
[1759253468041,1.70110808,205.25,205.22,0.68]
[1759253468232,1.70110808,205.26,205.22,0.68]
[1759253469344,1.70110808,205.26,205.23,0.68]
[1759253469541,1.70110808,205.26,205.21,5.65301761]
[1759253469742,1.70110808,205.26,205.22,0.68]
[1759253470247,20.8,205.28,205.22,4.87270019]
[1759253470434,1.70110808,205.26,205.23,0.68]
[1759253470632,1.70110808,205.26,205.22,4.87270019]
[1759253470834,1.70110808,205.26,205.23,0.68]
[1759253471629,1.70110808,205.25,205.23,0.68]
[1759253471838,1.70110808,205.25,205.21,0.78]
[1759253472037,1.70110808,205.25,205.22,0.68]
[1759253472550,1.70110808,205.25,205.21,4.97304851]
[1759253472927,1.70110808,205.25,205.21,5.65304851]
[1759253475623,1.70110808,205.23,205.21,0.1]
[1759253475831,0.7,205.24,205.21,0.1]
[1759253475832,1.70110808,205.22,205.21,0.1]
[1759253476136,2.40110808,205.22,205.21,0.1]
[1759253476630,7.27392749,205.22,205.21,0.1]
[1759253476826,4.87281941,205.22,205.21,0.1]
[1759253477045,7.27392749,205.22,205.21,0.1]
[1759253477247,7.27392749,205.22,205.12,0.68]
[1759253477248,19.74029916,205.22,205.12,0.68]
[1759253477433,1.70110808,205.14,205.11,0.1]
[1759253477636,1.70110808,205.14,205.11,0.81]
[1759253477945,1.70110808,205.14,205.12,0.71]
[1759253478930,1.70110808,205.14,205.11,0.1]
[1759253479131,1.70110808,205.13,205.11,0.1]
[1759253479353,12.18468516,205.18,205.11,0.1]
[1759253479354,1.70110808,205.12,205.11,0.1]
[1759253479933,1.70110808,205.13,205.11,0.1]
[1759253481239,1.70110808,205.15,205.12,0.71]
[1759253481442,1.70110808,205.15,205.11,4.97542711]
[1759253481443,1.70110808,205.15,205.13,0.71]
[1759253481646,1.70110808,205.16,205.13,0.71]
[1759253481951,20.8,205.17,205.11,4.97542711]
[1759253482157,1.70110808,205.17,205.13,0.71]
[1759253482450,1.70110808,205.16,205.11,5.68542711]
[1759253482834,1.70110808,205.16,205.12,0.71]
[1759253483057,1.70110808,205.16,205.13,0.7]
[1759253483255,1.70110808,205.16,205.14,0.7]
[1759253483441,1.70110808,205.18,205.15,0.7]
[1759253484334,1.70110808,205.17,205.15,0.7]
[1759253484560,1.70110808,205.16,205.11,0.1]
[1759253484754,1.70110808,205.13,205.11,0.1]
[1759253484942,1.70110808,205.13,205.11,0.8]
[1759253485146,1.70110808,205.13,205.11,0.1]
[1759253485338,1.70110808,205.12,205.11,0.1]
[1759253486353,4.87448208,205.15,205.11,0.1]
[1759253486559,1.70110808,205.12,205.11,0.1]
[1759253486749,0.68,205.14,205.11,0.1]
[1759253486966,1.70110808,205.12,205.11,0.1]
[1759253490469,2.6648792,205.12,205.11,0.1]
[1759253491347,2.6648792,205.13,205.11,0.1]
[1759253491542,2.6648792,205.15,205.11,5.67538814]
[1759253491744,4.87398149,205.18,205.11,5.67538814]
[1759253491745,2.6648792,205.16,205.12,0.7]
[1759253492053,2.6648792,205.15,205.12,0.7]
[1759253492468,2.6648792,205.15,205.13,0.7]
[1759253492937,2.6648792,205.15,205.12,0.7]
[1759253493142,2.6648792,205.15,205.13,0.7]
[1759253494851,2.6648792,205.15,205.11,0.1]
[1759253494852,2.6648792,205.17,205.14,0.7]
[1759253495061,2.6648792,205.18,205.15,0.7]
[1759253495265,2.6648792,205.19,205.16,0.7]
[1759253495678,4.8721442,205.25,205.17,0.7]
[1759253495970,2.6648792,205.21,205.17,0.7]
[1759253496348,2.6648792,205.21,205.18,0.7]
[1759253496651,2.6648792,205.21,205.19,0.7]
[1759253496849,2.6648792,205.21,205.17,0.7]
[1759253497073,2.6648792,205.21,205.18,0.7]
[1759253497967,0.68,205.24,205.14,17.06151895]
[1759253497968,2.6648792,205.2,205.14,17.06151895]
[1759253498273,2.6648792,205.21,205.18,0.7]
[1759253498647,0.68,205.24,205.18,0.7]
[1759253498847,5.55163248,205.27,205.19,4.87353184]
[1759253499057,2.6648792,205.26,205.2,0.7]
[1759253499247,2.6648792,205.27,205.2,0.7]
[1759253499450,2.6648792,205.28,205.2,0.7]
[1759253499649,2.6648792,205.28,205.21,13.59559401]
[1759253499875,2.6648792,205.28,205.22,0.7]
[1759253500065,2.6648792,205.27,205.22,0.7]
[1759253500250,2.6648792,205.26,205.19,17.05736146]
[1759253500448,2.6648792,205.26,205.2,34.58]
[1759253500449,2.6648792,205.24,205.2,34.58]
[1759253500650,2.6648792,205.24,205.21,0.7]
[1759253500855,2.6648792,205.25,205.22,4.87281941]
[1759253501559,2.6648792,205.25,205.21,0.7]
[1759253501963,2.6648792,205.25,205.22,0.7]
[1759253502361,2.66123549,205.28,205.23,0.7]
[1759253502560,0.68,205.33,205.25,2.66123549]
[1759253502767,3.97262245,205.38,205.27,4.87163248]
[1759253502768,2.66123549,205.32,205.27,4.87163248]
[1759253502972,2.66123549,205.33,205.28,0.7]
[1759253503154,2.66123549,205.35,205.29,2.66123549]
[1759253503350,2.66123549,205.35,205.29,0.7]
[1759253503664,7.53094344,205.36,205.3,2.66123549]
[1759253503970,7.53094344,205.36,205.3,3.36123549]
[1759253504670,2.66123549,205.36,205.3,3.36123549]
[1759253504874,2.66123549,205.37,205.31,7.53178826]
[1759253505052,2.66123549,205.4,205.34,2.66123549]
[1759253505253,5.74808762,205.42,205.36,2.66123549]
[1759253505557,2.66123549,205.39,205.32,34.58]
[1759253505759,2.66123549,205.38,205.32,37.94123549]
[1759253505964,2.66123549,205.35,205.3,0.7]
[1759253506159,2.66123549,205.36,205.31,0.7]
[1759253506358,2.66123549,205.37,205.32,0.7]
[1759253506552,2.66123549,205.37,205.33,0.7]
[1759253507076,2.66123549,205.37,205.33,5.57019216]
[1759253507275,2.66123549,205.38,205.34,0.7]
[1759253507575,2.66123549,205.36,205.31,0.7]
[1759253507776,2.66123549,205.36,205.32,0.7]
[1759253507977,0.68,205.38,205.3,4.8709206]
[1759253507978,2.66123549,205.35,205.3,4.8709206]
[1759253508175,5.54880187,205.39,205.31,0.7]
[1759253508383,2.66123549,205.35,205.31,0.7]
[1759253508670,5.54880187,205.39,205.31,0.7]
[1759253508671,4.86855502,205.4,205.31,3.36123549]
[1759253508874,2.66123549,205.38,205.33,4.87020893]
[1759253509063,2.66123549,205.38,205.32,4.87042974]
[1759253509259,2.66123549,205.37,205.33,0.7]
[1759253509472,2.66123549,205.37,205.32,4.87042974]
[1759253509672,2.66123549,205.37,205.33,0.7]
[1759253509867,4.86907315,205.38,205.33,0.7]
[1759253510073,2.66123549,205.37,205.33,0.7]
[1759253510465,2.66123549,205.37,205.34,0.7]
[1759253510680,23.46123549,205.38,205.34,0.7]
[1759253510876,4.86881563,205.39,205.32,4.87042974]
[1759253510877,2.66123549,205.39,205.35,5.56959815]
[1759253511077,2.66123549,205.39,205.36,0.7]
[1759253511296,4.86851682,205.41,205.37,0.7]
[1759253511587,0.2,205.42,205.35,4.86959815]
[1759253511588,2.86123549,205.42,205.38,0.7]
[1759253512366,0.2,205.42,205.39,0.7]
[1759253512755,0.2,205.42,205.37,0.7]
[1759253512963,2.86123549,205.42,205.37,5.56918337]
[1759253513175,2.86123549,205.42,205.37,4.86918337]
[1759253513373,2.86123549,205.42,205.38,0.68]
[1759253514065,0.2,205.42,205.39,0.68]
[1759253514264,0.2,205.42,205.4,0.68]
[1759253514464,0.2,205.42,205.41,0.68]
[1759253515382,0.2,205.42,205.38,16.9368295]
[1759253515880,0.2,205.42,205.4,0.68]
[1759253516384,0.2,205.42,205.38,21.12584995]
[1759253516685,0.2,205.42,205.39,0.68]
[1759253516980,0.2,205.42,205.4,5.54854894]
[1759253517181,0.2,205.42,205.4,0.68]
[1759253520276,0.2,205.42,205.38,48.15559401]
[1759253520577,0.2,205.42,205.37,7.53048785]
[1759253520578,2.66123549,205.41,205.37,34.54]
[1759253520781,0.2,205.42,205.38,3.34123549]
[1759253520963,0.2,205.42,205.39,8.20981824]
[1759253521365,0.2,205.42,205.4,0.68]
[1759253521573,0.2,205.42,205.41,0.68]
[1759253522093,0.2,205.42,205.41,16.9368295]
[1759253522484,0.2,205.42,205.4,13.59559401]
[1759253522677,0.2,205.42,205.4,14.27559401]
[1759253522879,2.86123549,205.42,205.37,0.68]
[1759253523083,2.86123549,205.42,205.38,35.22]
[1759253523084,7.72937864,205.42,205.38,35.22]
[1759253523283,2.86123549,205.42,205.39,0.68]
[1759253523791,0.2,205.42,205.39,0.68]
[1759253524089,5.06810384,205.42,205.37,0.68]
[1759253524388,2.66123549,205.41,205.37,0.68]
[1759253524771,2.66123549,205.41,205.38,0.68]
[1759253524985,7.72933933,205.42,205.38,0.68]
[1759253525469,2.66123549,205.39,205.36,34.56]
[1759253525785,0.7,205.41,205.36,34.56]
[1759253525786,2.66123549,205.38,205.36,34.56]
[1759253525970,2.66123549,205.4,205.37,0.68]
[1759253526168,2.66123549,205.4,205.38,0.68]
[1759253526367,0.2,205.42,205.39,0.68]
[1759253526781,0.2,205.42,205.4,0.68]
[1759253528491,5.06815661,205.42,205.37,7.53046386]
[1759253528675,7.7293921,205.42,205.37,14.27559401]
[1759253528993,0.2,205.42,205.38,0.68]
[1759253529182,0.2,205.42,205.39,0.68]
[1759253529494,0.2,205.42,205.37,0.68]
[1759253529495,2.86123549,205.42,205.37,0.68]
[1759253529693,2.86123549,205.42,205.38,0.68]
[1759253529908,0.2,205.42,205.36,39.42946973]
[1759253530196,0.2,205.42,205.39,0.68]
[1759253530376,0.2,205.42,205.36,42.09070522]
[1759253530572,0.2,205.42,205.4,5.54839423]
[1759253530778,0.2,205.42,205.41,50.8168295]
[1759253530979,0.2,205.42,205.41,51.4968295]
[1759253531179,0.2,205.42,205.41,51.78115264]
[1759253532998,0.2,205.42,205.41,56.64946479]
[1759253533200,0.2,205.42,205.41,5.54831215]
[1759253533390,0.2,205.42,205.41,40.10831215]
[1759253537404,0.2,205.42,205.41,56.64946479]
[1759253537584,0.65,205.53,205.41,56.64946479]
[1759253537585,138.36525849,205.54,205.42,13.87991715]
[1759253537783,136.16123549,205.53,205.47,2.66123549]
[1759253538001,2.66123549,205.52,205.48,34.52]
[1759253538197,0.65,205.51,205.49,34.52]
[1759253538523,2.66123549,205.51,205.49,34.52]
[1759253538799,134.15,205.53,205.49,34.52]
[1759253538979,2.66123549,205.52,205.49,34.52]
[1759253540321,0.65,205.6,205.51,2.66123549]
[1759253540517,0.2,205.59,205.54,2.66123549]
[1759253540694,0.2,205.59,205.55,34.54]
[1759253540896,3.31123549,205.57,205.5,0.72]
[1759253541094,2.66123549,205.55,205.51,34.54]
[1759253541297,2.66123549,205.55,205.47,13.59559401]
[1759253541298,2.66123549,205.53,205.47,14.58604992]
[1759253541590,2.66123549,205.52,205.48,34.56]
[1759253541800,2.66123549,205.52,205.48,35.28]
[1759253542302,7.52705362,205.52,205.48,34.56]
[1759253542502,7.52705362,205.52,205.48,35.28]
[1759253542885,2.66123549,205.52,205.48,40.0866308]
[1759253543084,2.66123549,205.53,205.48,40.0866308]
[1759253543286,2.66123549,205.53,205.49,0.66]
[1759253543886,2.66123549,205.55,205.5,0.66]
[1759253544113,2.66123549,205.57,205.51,35.2]
[1759253544285,2.66123549,205.57,205.52,5.5257065]
[1759253544483,2.66123549,205.57,205.52,4.8657065]
[1759253544682,7.72555533,205.58,205.53,0.66]
[1759253544905,0.2,205.58,205.54,0.66]
[1759253545087,0.2,205.58,205.55,35.22]
[1759253545300,0.2,205.58,205.56,0.66]
[1759253546088,0.2,205.58,205.57,0.66]
[1759253546298,0.2,205.58,205.57,5.52452303]
[1759253547487,0.2,205.58,205.57,0.66]
[1759253547690,0.2,205.58,205.55,35.22]
[1759253548212,6.8521112,205.58,205.55,35.22]
[1759253548595,0.2,205.58,205.55,34.56]
[1759253548902,0.2,205.58,205.56,0.66]
[1759253550412,0.2,205.58,205.55,34.56]
[1759253550721,0.2,205.58,205.55,40.08494739]
[1759253551013,0.2,205.58,205.56,6.6521112]
[1759253551217,0.2,205.58,205.55,39.42494739]
[1759253551396,0.2,205.58,205.56,0.66]
[1759253551594,0.2,205.58,205.55,39.42494739]
[1759253551794,0.2,205.58,205.56,0.66]
[1759253552001,0.2,205.58,205.57,0.66]
[1759253552220,0.2,205.58,205.57,5.52452303]
[1759253552392,0.2,205.58,205.57,10.02524261]
[1759253553218,0.2,205.58,205.57,23.62083662]
[1759253553395,0.2,205.58,205.57,23.90515976]
[1759253555618,0.2,205.58,205.56,13.59559401]
[1759253555828,0.2,205.58,205.56,34.52]
[1759253555829,5.15071958,205.57,205.56,34.52]
[1759253556016,4.50071958,205.57,205.56,34.52]
[1759253556517,4.70071958,205.58,205.56,34.52]
[1759253556721,0.2,205.58,205.56,34.52]
[1759253556910,9.56509012,205.58,205.56,34.52]
[1759253558225,4.50071958,205.57,205.56,34.52]
[1759253558719,4.50071958,205.57,205.52,0.66]
[1759253558919,4.50071958,205.55,205.53,34.56]
[1759253559724,5.15071958,205.54,205.47,19.15181204]
[1759253559910,4.50071958,205.52,205.48,34.56]
[1759253560310,4.50071958,205.52,205.48,35.22]
[1759253560516,4.86526391,205.54,205.49,0.66]
[1759253560724,4.86526391,205.54,205.5,0.66]
[1759253560904,4.50071958,205.55,205.51,34.56]
[1759253561326,5.15071958,205.54,205.51,34.56]
[1759253561531,4.50071958,205.53,205.51,34.56]
[1759253562131,4.86475968,205.56,205.52,0.66]
[1759253562304,9.36547926,205.56,205.52,0.66]
[1759253562504,4.50071958,205.55,205.51,34.56]
[1759253562732,9.36590789,205.55,205.51,34.56]
[1759253562903,4.50071958,205.54,205.51,34.56]
[1759253563112,4.50339902,205.54,205.51,34.56]
[1759253563317,4.50339902,205.54,205.51,35.22]
[1759253564719,4.50339902,205.54,205.21,79.2]
[1759253564720,0.28432314,205.5,205.37,0.66]
[1759253564937,0.28432314,205.5,205.36,34.58]
[1759253564938,4.50339902,205.4,205.36,34.58]
[1759253565242,4.50339902,205.4,205.37,19.68]
[1759253565627,4.50339902,205.38,205.32,0.66]
[1759253565834,4.50339902,205.36,205.33,34.8]
[1759253566149,4.50339902,205.35,205.33,34.8]
[1759253566319,4.50339902,205.34,205.33,34.8]
[1759253567221,4.86997175,205.34,205.33,34.8]
[1759253567420,9.37337077,205.34,205.33,34.8]
[1759253567624,10.02337077,205.34,205.3,34.82]
[1759253567841,0.65,205.33,205.3,34.82]
[1759253568040,4.50339902,205.33,205.31,0.66]
[1759253568745,4.50339902,205.35,205.32,0.66]
[1759253569220,4.50339902,205.35,205.33,0.66]
[1759253569420,4.50339902,205.35,205.31,4.8705058]
[1759253569741,4.50339902,205.35,205.32,0.66]
[1759253570948,4.86902338,205.38,205.32,0.66]
[1759253571242,4.50339902,205.34,205.32,0.66]
[1759253571643,4.50339902,205.34,205.3,39.69086251]
[1759253571944,4.50339902,205.39,205.33,13.59559401]
[1759253572146,4.50339902,205.39,205.34,35.48]
[1759253572327,4.50339902,205.39,205.35,0.66]
[1759253572530,4.50339902,205.39,205.36,0.66]
[1759253572721,4.50339902,205.41,205.37,0.66]
[1759253573547,30.17182882,205.41,205.34,34.82]
[1759253573734,4.50339902,205.39,205.34,35.49]
[1759253574050,4.50339902,205.39,205.35,35.49]
[1759253574343,4.50339902,205.39,205.36,0.67]
[1759253574643,4.50339902,205.39,205.36,35.49]
[1759253575220,4.50339902,205.41,205.37,0.67]
[1759253575648,4.50339902,205.4,205.36,34.82]
[1759253575829,4.50339902,205.39,205.36,34.82]
[1759253576351,4.50339902,205.39,205.36,35.49]
[1759253576645,4.50339902,205.4,205.37,0.67]
[1759253576942,4.50339902,205.4,205.36,39.68947971]
[1759253577147,4.50339902,205.4,205.36,40.35947971]
[1759253577652,4.50339902,205.38,205.36,40.35947971]
[1759253577944,4.50339902,205.37,205.36,34.82]
[1759253578252,4.50339902,205.37,205.33,14.26559401]
[1759253578451,4.50339902,205.34,205.33,0.67]
[1759253578747,4.50339902,205.34,205.33,35.45]
[1759253579454,4.50339902,205.34,205.33,34.78]
[1759253579625,133.5,205.41,205.34,4.86997175]
[1759253579626,138.36843134,205.41,205.34,4.86997175]
[1759253579826,4.50339902,205.38,205.35,0.67]
[1759253580026,4.50339902,205.38,205.34,4.86997175]
[1759253580027,4.50339902,205.38,205.36,0.67]
[1759253580226,4.50339902,205.38,205.35,0.67]
[1759253580447,4.50339902,205.36,205.34,4.86997175]
[1759253580752,4.50339902,205.37,205.35,0.67]
[1759253581047,133.5,205.41,205.36,0.67]
[1759253581250,4.50339902,205.39,205.37,0.67]
[1759253582948,133.5,205.41,205.37,0.67]
[1759253582949,133.5,205.41,205.38,5.53902327]
[1759253583151,133.5,205.41,205.39,0.67]
[1759253583349,4.50339902,205.4,205.37,34.82]
[1759253583527,4.50339902,205.38,205.37,34.82]
[1759253583728,4.50339902,205.39,205.37,40.35926035]
[1759253584130,4.50339902,205.4,205.38,0.67]
[1759253584344,4.50339902,205.4,205.37,39.68926035]
[1759253584542,133.5,205.41,205.37,40.35926035]
[1759253584744,4.50339902,205.39,205.37,40.35926035]
[1759253584940,4.50339902,205.4,205.37,40.35926035]
[1759253585250,133.5,205.41,205.39,13.59559401]
[1759253585454,133.5,205.41,205.4,0.67]
[1759253585748,4.50339902,205.45,205.4,0.67]
[1759253585957,4.50339902,205.47,205.41,34.8]
[1759253586137,0.66,205.49,205.42,0.67]
[1759253586336,4.50339902,205.47,205.42,0.67]
[1759253586544,4.50339902,205.46,205.43,0.67]
[1759253588052,4.50339902,205.46,205.43,5.53773501]
[1759253589142,4.50339902,205.46,205.43,4.86773501]
[1759253589552,4.50339902,205.46,205.43,5.53773501]
[1759253589760,133.5,205.49,205.44,0.67]
[1759253589937,138.00339902,205.49,205.45,35.43]
[1759253590269,138.00339902,205.49,205.46,0.67]
[1759253591372,133.5,205.49,205.47,5.53689054]
[1759253591657,133.5,205.49,205.48,0.67]
[1759253592061,133.5,205.49,205.47,4.86689054]
[1759253592356,133.5,205.49,205.47,5.53689054]
[1759253592551,133.5,205.49,205.47,4.86689054]
[1759253592866,138.00339902,205.49,205.48,34.78]
[1759253593040,133.5,205.49,205.48,34.78]
[1759253593243,138.00339902,205.49,205.48,34.78]
[1759253593564,138.00339902,205.49,205.46,4.86708603]
[1759253593766,138.00339902,205.49,205.47,34.76]
[1759253593963,133.5,205.54,205.48,13.59559401]
[1759253594141,133.5,205.54,205.5,13.59559401]
[1759253594465,133.5,205.54,205.51,35.43]
[1759253595168,133.5,205.54,205.52,4.8657065]
[1759253595664,133.5,205.54,205.52,5.5357065]
[1759253596158,133.5,205.54,205.52,4.8657065]
[1759253597864,5.20339902,205.53,205.47,13.59559401]
[1759253598073,5.20339902,205.53,205.43,21.48]
[1759253598074,4.50339902,205.48,205.44,17.03607642]
[1759253598245,4.50339902,205.47,205.45,34.76]
[1759253598953,4.50339902,205.46,205.42,18.46343979]
[1759253599261,4.50339902,205.45,205.43,39.62769553]
[1759253599464,4.50339902,205.44,205.43,34.76]
[1759253600264,4.50339902,205.44,205.41,4.86831151]
[1759253600464,4.50339902,205.43,205.42,34.76]
[1759253600939,4.50339902,205.43,205.4,4.86850597]
[1759253601263,4.50339902,205.42,205.41,34.76]
[1759253601970,4.50339902,205.45,205.41,40.30831215]
[1759253602141,4.50339902,205.46,205.42,0.68]
[1759253602343,4.50339902,205.46,205.43,0.68]
[1759253602564,4.50339902,205.46,205.44,34.74]
[1759253602958,4.50339902,205.45,205.44,34.74]
[1759253604677,4.50339902,205.47,205.44,40.31760124]
[1759253604863,4.50339902,205.46,205.44,39.60760124]
[1759253605377,4.50339902,205.48,205.45,0.71]
[1759253605758,4.50339902,205.48,205.44,39.60760124]
[1759253605958,17.70411689,205.47,205.32,14.64]
[1759253606174,4.50339902,205.33,205.31,2.54151263]
[1759253606381,4.50339902,205.33,205.27,17.58]
[1759253606559,4.50339902,205.28,205.27,17.58]
[1759253606763,4.50339902,205.28,205.27,18.29]
[1759253607578,4.50339902,205.28,205.27,31.88559401]
[1759253607971,4.50339902,205.28,205.27,36.75722649]
[1759253608756,4.50339902,205.28,205.27,17.58]
[1759253608957,4.50339902,205.28,205.27,35.2]
[1759253609256,22.22328209,205.28,205.21,0.1]
[1759253609562,4.50339902,205.22,205.21,0.1]
[1759253610182,4.50339902,205.23,205.21,5.68305357]
[1759253610559,4.50339902,205.23,205.21,4.97305357]
[1759253610763,4.50339902,205.25,205.22,0.71]
[1759253611188,4.50339902,205.25,205.23,0.71]
[1759253611557,4.50339902,205.25,205.24,0.71]
[1759253611761,4.50339902,205.25,205.24,35.99]
[1759253612482,4.50339902,205.25,205.24,40.86234457]
[1759253612685,4.50339902,205.27,205.24,40.86234457]
[1759253612888,4.50339902,205.27,205.25,0.71]
[1759253613084,5.17339902,205.26,205.21,35.36]
[1759253613287,4.50339902,205.23,205.21,35.36]
[1759253614271,6.67666678,205.24,205.21,35.36]
[1759253614994,6.67666678,205.24,205.21,40.23304566]
[1759253615373,6.67666678,205.24,205.21,35.36]
[1759253615782,6.67666678,205.24,205.21,36.07]
[1759253616379,0.67,205.28,205.21,40.94303569]
[1759253616380,6.67666678,205.25,205.21,40.94303569]
[1759253617076,6.67666678,205.24,205.21,40.94303569]
[1759253617500,6.67666678,205.24,205.23,4.87258198]
[1759253617673,6.67666678,205.25,205.23,4.87258198]
[1759253617876,6.67666678,205.26,205.23,4.87258198]
[1759253618174,6.67666678,205.27,205.24,0.71]
[1759253618369,6.67666678,205.28,205.25,0.71]